bitfinex/quotes_SOLUSD_20250207
["timestamp","ask_amount","ask_price","bid_price","bid_amount"]
[1738970258186,16.51336909,190.95,190.9,5.2383]
[1738970258187,16.51336909,190.97,190.9,5.2383]
[1738970258373,16.51336909,190.99,190.91,16.51336909]
[1738970258783,0.12549,190.98,190.91,16.51336909]
[1738970259083,16.63885909,190.98,190.91,16.51336909]
[1738970259873,16.51336909,190.97,190.92,5.2377]
[1738970261886,16.51336909,190.97,190.9,29.60916909]
[1738970262087,16.51336909,190.97,190.91,5.238]
[1738970262563,16.63885909,190.96,190.91,5.238]
[1738970262861,16.51336909,190.96,190.91,5.238]
[1738970263264,16.51336909,190.95,190.91,5.238]
[1738970263870,16.51336909,190.96,190.91,5.238]
[1738970264070,16.51336909,190.96,190.9,18.3341]
[1738970264506,16.54336909,190.99,190.91,16.51336909]
[1738970264686,16.51336909,190.98,190.91,16.51336909]
[1738970265201,0.12549,190.97,190.9,34.84746909]
[1738970265494,16.63885909,190.97,190.9,18.3341]
[1738970265969,0.12549,190.93,190.9,5.2383]
[1738970266319,0.25098,190.94,190.87,21.75246909]
[1738970266804,16.76434909,190.93,190.87,5.2391]
[1738970267000,0.25098,190.93,190.87,5.2391]
[1738970267919,16.51336909,190.96,190.89,16.51336909]
[1738970268125,16.51336909,190.96,190.9,5.2383]
[1738970268126,0.12549,190.96,190.9,5.2383]
[1738970268812,0.03,190.99,190.95,16.51336909]
[1738970269599,0.03,190.99,190.93,16.51336909]
[1738970270226,0.03,190.99,190.94,5.2372]
[1738970270511,16.63885909,190.98,190.94,5.2372]
[1738970270695,0.12549,190.97,190.94,5.2372]
[1738970271011,0.12549,190.97,190.92,5.2375]
[1738970271910,16.63885909,190.97,190.92,5.2375]
[1738970272092,0.12549,190.96,190.92,5.2375]
[1738970272993,0.25098,190.96,190.92,5.2375]
[1738970276612,0.12549,190.95,190.92,5.2375]
[1738970277552,0.12549,190.95,190.9,5.2383]
[1738970277713,16.76434909,190.96,190.9,5.2383]
[1738970278600,10.54242735,190.95,190.9,5.2383]
[1738970279109,10.54242735,190.96,190.9,5.2383]
[1738970279295,0.12549,190.95,190.9,5.2383]
[1738970279917,10.66791735,190.95,190.9,5.2383]
[1738970280708,10.54242735,190.97,190.9,5.2383]
[1738970280914,0.03,190.99,190.96,10.54242735]
[1738970281105,0.03,190.99,190.98,10.54242735]
[1738970281905,0.03,190.99,190.98,15.77852735]
[1738970282701,0.03,190.99,190.98,21.69184449]
[1738970283401,0.03,190.99,190.98,5.2361]
[1738970284526,0.03,190.99,190.98,21.69184449]
[1738970285711,0.03,190.99,190.98,5.2361]
[1738970287920,0.03,190.99,190.96,21.69234449]
[1738970288504,0.03,190.99,190.97,16.45574449]
[1738970289214,0.03,190.99,190.98,0.063]
[1738970297914,0.03,191.03,190.98,18.16254449]
[1738970298912,0.03,191.03,190.99,16.45574449]
[1738970299127,0.03,191.03,191.0,5.2356]
[1738970300144,0.03,191.03,190.99,5.2358]
[1738970301232,0.03,191.03,191.01,16.45574449]
[1738970302421,0.03,191.03,191.02,21.69074449]
[1738970303442,12.08999305,191.14,191.03,7.7091]
[1738970303619,12.08999305,191.14,191.09,16.45574449]
[1738970304135,8.16149478,191.14,191.1,16.45574449]
[1738970304320,8.16149478,191.14,191.11,16.45574449]
[1738970304519,8.16149478,191.14,191.13,16.45574449]
[1738970304727,8.16149478,191.14,191.12,10.51613783]
[1738970305324,8.16149478,191.14,191.08,0.78467777]
[1738970305325,9.478e-05,191.14,191.13,15.74813783]
[1738970305529,56.30837334,191.2,191.13,23.45723783]
[1738970305824,56.30837334,191.2,191.19,10.51613783]
[1738970306024,56.30837334,191.2,191.13,26.0212]
[1738970306620,56.30837334,191.2,191.16,16.42424473]
[1738970307025,16.45424473,191.23,191.16,16.42424473]
[1738970307550,16.45424473,191.23,191.17,5.2309]
[1738970308014,0.03,191.23,191.17,5.2309]
[1738970308426,0.03,191.23,191.17,21.65514473]
[1738970308629,0.03,191.23,191.19,16.42424473]
[1738970308826,0.03,191.23,191.2,16.42424473]
[1738970309342,0.03,191.23,191.19,16.42424473]
[1738970310024,0.03,191.23,191.2,5.2301]
[1738970311229,0.03,191.23,191.2,21.65434473]
[1738970311636,0.03,191.23,191.18,16.42424473]
[1738970311845,0.03,191.23,191.17,16.42424473]
[1738970312261,0.03,191.23,191.18,21.65484473]
[1738970314849,0.03,191.23,191.18,5.2306]
[1738970315352,0.03,191.23,191.19,16.42424473]
[1738970315538,0.03,191.23,191.18,5.2306]
[1738970316055,0.03,191.23,191.16,5.2309]
[1738970316056,16.42424473,191.22,191.16,5.2309]
[1738970316260,16.45424473,191.23,191.16,5.2309]
[1738970316925,16.45424473,191.23,191.19,20.0]
[1738970316926,0.03,191.23,191.19,20.0]
[1738970317130,0.03,191.23,191.22,16.42424473]
[1738970317557,0.03,191.23,191.21,16.42424473]
[1738970318123,0.03,191.23,191.2,21.65434473]
[1738970318430,0.03,191.23,191.21,16.42424473]
[1738970318956,0.03,191.23,191.2,5.2301]
[1738970319127,0.03,191.23,191.18,5.2304]
[1738970320232,0.03,191.23,191.17,5.2309]
[1738970320233,16.42424473,191.22,191.17,5.2309]
[1738970321536,16.42424473,191.29,191.2,16.42424473]
[1738970321736,16.42424473,191.33,191.23,18.06624473]
[1738970322349,16.42424473,191.29,191.21,22.99834473]
[1738970323252,16.42424473,191.29,191.22,5.2293]
[1738970323632,14.92424473,191.29,191.22,5.2293]
[1738970323855,5.53745045,191.38,191.25,36.42424473]
[1738970324153,5.53745045,191.38,191.29,16.42424473]
[1738970324154,16.42424473,191.37,191.29,16.42424473]
[1738970325044,16.42424473,191.37,191.3,16.42424473]
[1738970325336,16.92424473,191.39,191.3,22.69164473]
[1738970325651,16.92424473,191.39,191.32,16.42424473]
[1738970326440,16.92424473,191.39,191.31,21.65134473]
[1738970328240,16.42424473,191.38,191.31,5.2271]
[1738970329151,0.0001,191.39,191.37,16.42424473]
[1738970329344,0.03,191.43,191.38,18.85875198]
[1738970329549,0.03,191.49,191.42,36.42424473]
[1738970329740,0.03,191.49,191.42,20.78325804]
[1738970329940,0.03,191.49,191.46,20.0]
[1738970330140,0.03,191.49,191.48,16.42424473]
[1738970330349,0.03,191.49,191.47,21.64694473]
[1738970331748,0.03,191.49,191.46,16.42424473]
[1738970331964,0.03,191.49,191.45,16.42424473]
[1738970332136,0.03,191.49,191.45,21.64734473]
[1738970332336,0.03,191.49,191.42,16.42424473]
[1738970332859,0.03,191.49,191.43,16.42424473]
[1738970333053,0.03,191.49,191.44,16.42424473]
[1738970333244,0.03,191.49,191.4,5.2246]
[1738970333245,0.03,191.49,191.45,16.42424473]
[1738970333445,0.03,191.49,191.46,16.42424473]
[1738970333640,21.64304473,191.62,191.52,20.0]
[1738970333847,5.2176,191.66,191.57,16.42424473]
[1738970334064,5.2176,191.66,191.5,0.7830185]
[1738970334262,16.42424473,191.63,191.55,5.2203]
[1738970334566,16.42424473,191.63,191.56,16.42424473]
[1738970334763,0.242,191.62,191.55,21.64454473]
[1738970335153,16.42424473,191.7,191.61,16.42424473]
[1738970335350,16.42424473,191.68,191.6,16.42424473]
[1738970335555,16.42424473,191.7,191.62,16.42424473]
[1738970336154,1.0,191.78,191.64,16.42424473]
[1738970336155,16.42424473,191.72,191.64,16.42424473]
[1738970336356,16.42424473,191.69,191.61,16.42424473]
[1738970336565,16.42424473,191.67,191.59,5.2194]
[1738970336759,0.12549,191.72,191.55,26.16592797]
[1738970336760,0.12549,191.69,191.55,26.16592797]
[1738970336952,26.16592797,191.61,191.53,26.16592797]
[1738970337160,26.16592797,191.59,191.51,31.38752797]
[1738970337766,26.16592797,191.61,191.51,31.38752797]
[1738970338575,26.16592797,191.63,191.55,26.16592797]
[1738970339264,26.16592797,191.61,191.53,26.16592797]
[1738970339873,26.16592797,191.63,191.55,26.16592797]
[1738970340975,26.16592797,191.61,191.54,5.2208]
[1738970341173,26.16592797,191.63,191.55,26.16592797]
[1738970342056,26.16592797,191.61,191.53,26.16592797]
[1738970343157,26.16592797,191.63,191.55,31.38642797]
[1738970344479,26.16592797,191.63,191.56,26.16592797]
[1738970345174,26.16592797,191.63,191.55,26.16592797]
[1738970345693,26.16592797,191.63,191.55,31.38642797]
[1738970348175,26.16592797,191.61,191.54,26.16592797]
[1738970348377,26.16592797,191.6,191.53,5.2208]
[1738970348985,26.16592797,191.59,191.53,5.2208]
[1738970349163,31.38512797,191.6,191.53,5.2208]
[1738970349359,31.38512797,191.6,191.53,31.38672797]
[1738970349360,26.16592797,191.6,191.53,31.38672797]
[1738970349670,0.12549,191.6,191.53,31.38672797]
[1738970350083,26.16592797,191.61,191.54,26.16592797]
[1738970350280,26.16592797,191.61,191.53,31.38672797]
[1738970350967,31.38492797,191.61,191.53,31.38672797]
[1738970351559,26.29141797,191.6,191.53,26.16592797]
[1738970351772,26.29141797,191.6,191.49,19.654]
[1738970351773,26.16592797,191.58,191.52,5.2213]
[1738970352158,26.16592797,191.58,191.51,26.16592797]
[1738970352362,26.16592797,191.56,191.5,5.2219]
[1738970352559,26.16592797,191.56,191.49,37.98692797]
[1738970352880,26.16592797,191.55,191.49,11.821]
[1738970353195,26.16592797,191.56,191.49,37.98692797]
[1738970353574,0.12549,191.57,191.51,26.16592797]
[1738970353776,0.12549,191.57,191.49,11.821]
[1738970353777,26.16592797,191.57,191.5,26.16592797]
[1738970353995,31.38592797,191.57,191.5,26.16592797]
[1738970354285,26.16592797,191.56,191.49,37.98692797]
[1738970354689,26.16592797,191.56,191.49,11.821]
[1738970355067,26.16592797,191.55,191.49,11.821]
[1738970355265,31.38622797,191.56,191.49,11.821]
[1738970355691,26.16592797,191.56,191.49,11.821]
[1738970356002,26.16592797,191.56,191.49,37.98692797]
[1738970356173,0.12549,191.55,191.49,31.45102797]
[1738970356370,26.16592797,191.57,191.49,31.45102797]
[1738970356696,26.16592797,191.57,191.5,16.36637303]
[1738970356697,16.36637303,191.57,191.5,16.36637303]
[1738970356879,16.36637303,191.57,191.49,21.65147303]
[1738970357185,16.36637303,191.56,191.49,5.2851]
[1738970357600,16.36637303,191.56,191.49,21.65147303]
[1738970357978,16.36637303,191.58,191.5,16.36637303]
[1738970358194,16.36637303,191.59,191.51,16.36637303]
[1738970358482,16.36637303,191.59,191.52,16.36637303]
[1738970359184,16.36637303,191.61,191.54,16.36637303]
[1738970359492,16.36637303,191.62,191.55,16.36637303]
[1738970359674,16.36637303,191.62,191.54,16.36637303]
[1738970360279,16.36637303,191.61,191.54,16.36637303]
[1738970360491,16.36637303,191.61,191.55,5.2205]
[1738970360992,16.36637303,191.62,191.55,5.2205]
[1738970361400,0.03,191.63,191.59,16.36637303]
[1738970361571,0.03,191.63,191.6,16.36637303]
[1738970361771,0.03,191.63,191.59,16.36637303]
[1738970362493,0.03,191.63,191.58,16.36637303]
[1738970362688,0.03,191.63,191.59,5.2194]
[1738970363275,0.03,191.63,191.57,21.58607303]
[1738970363592,0.03,191.63,191.57,5.2197]
[1738970364091,16.39637303,191.63,191.57,5.2197]
[1738970365494,0.12549,191.69,191.57,5.2197]
[1738970365495,16.36637303,191.71,191.62,16.36637303]
[1738970365794,8.2405,191.82,191.61,8.1131]
[1738970365795,16.36637303,191.77,191.7,16.36637303]
[1738970365979,16.36637303,191.79,191.7,16.36637303]
[1738970366297,16.36637303,191.79,191.72,16.36637303]
[1738970366589,16.36637303,191.79,191.63,15.19478655]
[1738970366590,26.13264774,191.77,191.7,26.13264774]
[1738970366796,25.13264774,191.75,191.68,26.13264774]
[1738970366973,24.63264774,191.75,191.68,5.2167]
[1738970367171,24.63264774,191.75,191.68,31.34934774]
[1738970367573,31.34744774,191.76,191.68,31.34934774]
[1738970367770,26.13264774,191.76,191.68,31.34934774]
[1738970368201,26.13264774,191.76,191.69,26.13264774]
[1738970368573,26.13264774,191.77,191.69,26.13264774]
[1738970368778,26.13264774,191.77,191.71,5.2162]
[1738970368973,26.13264774,191.76,191.7,5.2163]
[1738970369186,5.2143,191.78,191.67,26.13264774]
[1738970369187,26.13264774,191.74,191.67,26.13264774]
[1738970369880,26.13264774,191.75,191.68,26.13264774]
[1738970370588,26.13264774,191.76,191.69,26.13264774]
[1738970370793,26.13264774,191.75,191.68,26.13264774]
[1738970371202,27.13264774,191.8,191.68,26.13264774]
[1738970371203,26.13264774,191.73,191.68,5.217]
[1738970371502,26.13264774,191.72,191.66,31.34994774]
[1738970371810,26.13264774,191.73,191.66,31.34994774]
[1738970372179,26.13264774,191.72,191.66,5.2173]
[1738970372588,26.13264774,191.74,191.67,26.13264774]
[1738970372899,26.13264774,191.73,191.66,31.34994774]
[1738970373904,31.34834774,191.73,191.66,31.34994774]
[1738970374286,26.13264774,191.74,191.67,26.13264774]
[1738970374490,26.13264774,191.76,191.69,26.13264774]
[1738970374686,5.2143,191.78,191.66,5.2173]
[1738970374687,26.13264774,191.75,191.68,26.13264774]
[1738970375085,26.16264774,191.75,191.68,26.13264774]
[1738970375488,26.16264774,191.75,191.68,31.34934774]
[1738970375686,26.13264774,191.74,191.68,5.2167]
[1738970376195,26.13264774,191.74,191.67,31.34984774]
[1738970376513,26.13264774,191.72,191.66,0.063]
[1738970376700,26.13264774,191.71,191.66,5.2804]
[1738970377711,26.13264774,191.71,191.66,0.063]
[1738970378610,26.13264774,191.7,191.66,0.063]
[1738970379305,26.13264774,191.68,191.66,0.063]
[1738970380490,26.13264774,191.69,191.66,0.063]
[1738970381307,31.34934774,191.69,191.66,0.063]
[1738970381491,26.13264774,191.67,191.66,0.063]
[1738970382902,26.25813774,191.67,191.66,0.063]
[1738970383897,31.47543774,191.67,191.66,0.063]
[1738970386722,21.8215742,191.67,191.66,0.063]
[1738970387012,36.23342273,191.67,191.66,0.063]
[1738970387901,1.0,191.63,191.53,6.4989]
[1738970388109,16.3532942,191.59,191.53,11.7199]
[1738970388411,16.3532942,191.63,191.56,16.3532942]
[1738970388601,16.3532942,191.65,191.58,16.3532942]
[1738970389018,16.3532942,191.7,191.58,16.3532942]
[1738970389019,16.3532942,191.64,191.58,16.3532942]
[1738970389192,16.3532942,191.64,191.57,21.5731942]
[1738970389387,16.3532942,191.63,191.57,5.2199]
[1738970389591,16.3532942,191.63,191.56,16.3532942]
[1738970390218,16.3532942,191.63,191.56,21.5734942]
[1738970391213,16.3532942,191.62,191.56,5.2202]
[1738970391797,16.3532942,191.62,191.55,16.3532942]
[1738970391998,16.3532942,191.6,191.54,5.2206]
[1738970393918,16.3532942,191.56,191.53,6.4989]
[1738970395515,16.3532942,191.57,191.53,6.4989]
[1738970395703,16.3532942,191.55,191.53,6.4989]
[1738970395903,16.3532942,191.56,191.53,6.4989]
[1738970396419,16.3532942,191.56,191.52,1.6006]
[1738970396797,16.3532942,191.55,191.52,1.6006]
[1738970396999,16.3532942,191.54,191.49,11.5484]
[1738970397908,16.3532942,191.53,191.49,6.3264]
[1738970398223,16.3532942,191.54,191.49,11.5485]
[1738970398625,16.3532942,191.57,191.5,16.3532942]
[1738970398797,16.3532942,191.61,191.54,16.3532942]
[1738970399003,16.3532942,191.63,191.55,16.3532942]
[1738970399626,16.3532942,191.62,191.55,16.3532942]
[1738970399809,16.3532942,191.61,191.54,5.2208]
[1738970400006,16.3532942,191.61,191.54,21.5740942]
[1738970400525,16.3532942,191.62,191.55,16.3532942]
[1738970400716,16.3532942,191.62,191.54,21.5740942]
[1738970401024,16.3532942,191.61,191.54,5.2208]
[1738970402015,16.3532942,191.6,191.54,5.2208]
[1738970402616,16.3532942,191.56,191.5,5.2219]
[1738970402808,16.3532942,191.55,191.5,5.2219]
[1738970403011,16.3532942,191.56,191.5,5.2219]
[1738970403209,16.3532942,191.57,191.5,5.2219]
[1738970403409,16.3532942,191.56,191.5,5.2219]
[1738970403804,16.3532942,191.55,191.5,5.2219]
[1738970405625,16.3532942,191.51,191.49,0.063]
[1738970405816,16.3532942,191.5,191.49,0.063]
[1738970406228,16.3532942,191.51,191.49,0.063]
[1738970406621,16.3532942,191.53,191.49,5.2851]
[1738970406817,16.3532942,191.53,191.49,0.063]
[1738970407419,16.3532942,191.55,191.49,0.063]
[1738970408029,5.22,191.58,191.49,0.063]
[1738970408030,16.3532942,191.52,191.49,0.063]
[1738970410321,16.3532942,191.5,191.49,0.063]
[1738970410911,16.4787842,191.5,191.49,0.063]
[1738970411216,16.3532942,191.5,191.49,0.063]
[1738970411631,21.7006842,191.5,191.49,0.063]
[1738970413216,21.8261742,191.5,191.49,0.063]
[1738970415022,39.1794684,191.5,191.49,0.063]
[1738970415234,52.59131693,191.5,191.49,0.063]
[1738970415809,20.12549,191.47,191.46,0.063]
[1738970416137,51.01612273,191.47,191.46,0.063]
[1738970416317,52.01612273,191.47,191.46,0.063]
[1738970416516,52.9765321,191.47,191.46,0.063]
[1738970416716,58.1992321,191.47,191.46,0.063]
[1738970417038,57.1992321,191.47,191.46,0.063]
[1738970417336,58.1992321,191.47,191.46,0.063]
[1738970417746,0.25098,191.4,191.34,1.6361]
[1738970417915,16.3532942,191.36,191.34,1.6361]
[1738970418124,0.25098,191.4,191.34,1.6361]
[1738970418125,16.3532942,191.37,191.34,1.6361]
[1738970419014,16.3532942,191.35,191.3,7.7529]
[1738970419234,16.3532942,191.33,191.3,7.7529]
[1738970419412,16.3532942,191.33,191.3,1.6361]
[1738970419818,16.3532942,191.32,191.3,1.6361]
[1738970420018,16.3532942,191.32,191.29,0.063]
[1738970420019,16.3532942,191.31,191.29,0.063]
[1738970420733,0.12549,191.33,191.29,0.063]
[1738970420734,16.6042742,191.3,191.29,0.063]
[1738970421140,35.24342273,191.3,191.29,0.063]
[1738970422339,36.24342273,191.3,191.29,0.063]
[1738970422543,52.59671693,191.3,191.29,0.063]
[1738970422745,53.59671693,191.3,191.29,0.063]
[1738970423845,35.24342273,191.3,191.29,0.063]
[1738970424745,7.80341863,191.36,191.29,0.063]
[1738970424746,16.3532942,191.46,191.29,25.6292942]
[1738970424921,16.3832942,191.47,191.39,16.3532942]
[1738970425125,0.03,191.47,191.41,8.213]
[1738970425330,0.03,191.47,191.44,16.3532942]
[1738970425638,0.03,191.47,191.45,16.3532942]
[1738970425946,0.03,191.47,191.44,16.3532942]
[1738970426649,0.03,191.47,191.44,26.20062325]
[1738970426867,0.03,191.47,191.42,31.42472325]
[1738970427226,0.03,191.47,191.44,26.20062325]
[1738970427964,0.03,191.47,191.45,26.20062325]
[1738970428455,0.0001,191.47,191.46,26.20062325]
[1738970428639,26.20062325,191.61,191.46,26.20062325]
[1738970428950,26.20062325,191.61,191.53,26.20062325]
[1738970429330,13.66282853,191.6,191.53,26.20062325]
[1738970429736,13.66282853,191.6,191.53,31.42162325]
[1738970430351,39.86345178,191.6,191.53,31.42162325]
[1738970430529,0.25098,191.58,191.51,31.42202325]
[1738970431427,0.12549,191.56,191.49,31.42252325]
[1738970431625,26.45160325,191.55,191.49,5.2219]
[1738970432259,26.45160325,191.55,191.48,5.2224]
[1738970433157,0.25098,191.55,191.48,31.42302325]
[1738970433337,0.25098,191.55,191.49,26.20062325]
[1738970433744,0.25098,191.55,191.49,31.42262325]
[1738970433958,0.12549,191.55,191.49,31.42262325]
[1738970436337,0.12549,191.54,191.49,5.222]
[1738970437353,26.45160325,191.54,191.47,26.20062325]
[1738970437947,0.12549,191.52,191.46,26.20062325]
[1738970438158,0.12549,191.52,191.44,31.42412325]
[1738970438159,0.12549,191.5,191.44,31.42412325]
[1738970438460,0.12549,191.5,191.45,26.20062325]
[1738970439348,0.12549,191.5,191.46,5.223]
[1738970439537,0.25098,191.51,191.45,31.42382325]
[1738970439861,26.45160325,191.51,191.45,5.2232]
[1738970440462,0.12549,191.49,191.45,5.2232]
[1738970440638,0.25098,191.49,191.45,5.2232]
[1738970441347,0.12549,191.49,191.45,5.2232]
[1738970442559,0.12549,191.49,191.44,5.2235]
[1738970443875,0.12549,191.49,191.36,27.42359832]
[1738970443876,0.12549,191.47,191.42,31.42472325]
[1738970444042,26.32611325,191.47,191.42,5.2241]
[1738970444366,0.12549,191.46,191.42,5.2241]
[1738970444747,0.12549,191.46,191.42,31.42472325]
[1738970446244,0.12549,191.46,191.41,26.20062325]
[1738970446448,26.20062325,191.54,191.45,26.20062325]
[1738970446646,26.20062325,191.54,191.47,26.20062325]
[1738970446861,0.25098,191.53,191.49,26.20062325]
[1738970447264,13.66282853,191.55,191.49,26.20062325]
[1738970447851,13.66282853,191.55,191.49,31.42262325]
[1738970448051,0.25098,191.55,191.5,26.20062325]
[1738970448272,5.2497,191.58,191.52,26.20062325]
[1738970448273,0.03,191.58,191.52,26.20062325]
[1738970448581,0.03,191.58,191.53,26.20062325]
[1738970449159,0.12549,191.57,191.52,26.20062325]
[1738970450196,0.12549,191.55,191.5,5.2219]
[1738970451571,26.45160325,191.55,191.48,26.20062325]
[1738970451771,0.12549,191.51,191.47,1.6504]
[1738970451964,26.32611325,191.51,191.45,0.063]
[1738970452161,26.32611325,191.51,191.45,5.2862]
[1738970452471,26.20062325,191.5,191.45,5.2862]
[1738970453357,26.20062325,191.5,191.45,0.063]
[1738970454279,0.25098,191.49,191.45,0.063]
[1738970454773,26.45160325,191.49,191.45,0.063]
[1738970455503,0.25098,191.47,191.45,0.063]
[1738970455780,26.45160325,191.46,191.45,0.063]
[1738970457457,45.08645178,191.46,191.45,0.063]
[1738970459580,46.08645178,191.46,191.45,0.063]
[1738970460462,20.25098,191.42,191.34,6.5117]
[1738970460784,0.25098,191.38,191.3,26.20062325]
[1738970460961,0.12549,191.36,191.3,31.42792325]
[1738970461360,26.20062325,191.38,191.31,26.20062325]
[1738970461778,0.12549,191.37,191.31,26.20062325]
[1738970461980,0.25098,191.37,191.31,26.20062325]
[1738970462166,0.12549,191.35,191.3,5.2273]
[1738970462366,0.12549,191.35,191.29,39.58442325]
[1738970463578,0.12549,191.34,191.29,13.3838]
[1738970463777,0.12549,191.34,191.29,0.063]
[1738970464265,0.12549,191.35,191.29,26.26362325]
[1738970464579,26.20062325,191.39,191.32,26.20062325]
[1738970464783,26.20062325,191.42,191.35,26.20062325]
[1738970465169,0.12549,191.4,191.34,26.20062325]
[1738970465582,0.12549,191.37,191.31,26.20062325]
[1738970465767,0.25098,191.36,191.3,5.2273]
[1738970466366,0.12549,191.35,191.3,5.2273]
[1738970466576,0.12549,191.35,191.29,0.063]
[1738970466577,0.12549,191.34,191.29,0.063]
[1738970466761,0.12549,191.31,191.29,0.063]
[1738970469282,0.12549,191.3,191.29,0.063]
[1738970469464,26.45160325,191.3,191.29,0.063]
[1738970470781,39.86345178,191.3,191.29,0.063]
[1738970471687,0.12549,191.3,191.29,0.063]
[1738970471865,26.20062325,191.33,191.29,0.063]
[1738970472190,0.25098,191.32,191.29,0.063]
[1738970475363,0.12549,191.32,191.29,0.063]
[1738970476386,0.25098,191.33,191.29,0.063]
[1738970476574,31.67810325,191.33,191.29,0.063]
[1738970476775,0.12549,191.3,191.29,0.063]
[1738970477275,0.25098,191.3,191.29,0.063]
[1738970478782,0.12549,191.3,191.29,0.063]
[1738970479668,21.88898038,191.3,191.29,0.063]
[1738970479963,35.30082891,191.3,191.29,0.063]
[1738970481182,0.25098,191.3,191.29,0.063]
[1738970482402,16.41070038,191.32,191.29,0.063]
[1738970482582,16.41070038,191.34,191.29,0.063]
[1738970482774,30.07352891,191.33,191.29,0.063]
[1738970483291,0.25098,191.3,191.29,0.063]
[1738970483798,16.66168038,191.3,191.29,0.063]
[1738970485475,21.88898038,191.3,191.29,0.063]
[1738970485987,35.30082891,191.3,191.29,0.063]
[1738970488387,36.30082891,191.3,191.29,0.063]
[1738970488976,35.30082891,191.3,191.29,0.063]
[1738970492390,13.66282853,191.3,191.29,0.063]
[1738970493024,18.89012853,191.3,191.29,0.063]
[1738970493225,35.30082891,191.3,191.29,0.063]
[1738970494402,18.89012853,191.3,191.29,0.063]
[1738970494607,35.30082891,191.3,191.29,0.063]
[1738970499700,21.88898038,191.3,191.29,0.063]
[1738970499923,21.63750038,191.32,191.29,0.063]
[1738970500324,30.07352891,191.31,191.29,0.063]
[1738970501031,5.35279,191.3,191.29,0.063]
[1738970501527,35.30082891,191.3,191.29,0.063]
[1738970501918,18.89012853,191.3,191.29,0.063]
[1738970502927,35.30082891,191.3,191.29,0.063]
[1738970503823,0.25098,191.28,191.27,0.063]
[1738970504008,32.03107161,191.28,191.27,0.063]
[1738970504521,33.33758086,191.28,191.27,0.063]
[1738970504840,0.25098,191.26,191.25,0.063]
[1738970505004,30.07352891,191.26,191.25,0.063]
[1738970505439,35.30192891,191.26,191.25,0.063]
[1738970510835,0.25098,191.26,191.25,0.063]
[1738970511128,0.9575427,191.28,191.25,0.063]
[1738970511337,21.63810038,191.3,191.25,0.063]
[1738970511743,13.66282853,191.29,191.25,0.063]
[1738970512242,30.07352891,191.29,191.25,0.063]
[1738970512747,35.30122891,191.29,191.25,0.063]
[1738970513038,30.07352891,191.29,191.25,0.063]
[1738970513542,16.66168038,191.29,191.25,0.063]
[1738970513856,0.25098,191.29,191.25,0.063]
[1738970515435,16.41070038,191.33,191.27,16.41070038]
[1738970515820,0.25098,191.32,191.26,16.41070038]
[1738970516020,0.25098,191.32,191.27,8.2363]
[1738970516419,0.12549,191.31,191.27,8.2363]
[1738970518244,16.41070038,191.3,191.27,8.2363]
[1738970519059,16.53619038,191.28,191.27,1.6285]
[1738970519261,16.53619038,191.28,191.25,0.063]
[1738970520545,0.12549,191.28,191.25,0.063]
[1738970521240,16.53619038,191.28,191.25,0.063]
[1738970522060,16.41070038,191.27,191.25,0.063]
[1738970522954,0.12549,191.26,191.25,0.063]
[1738970524540,35.30192891,191.26,191.25,0.063]
[1738970526140,0.12549,191.23,191.17,1.596]
[1738970526342,16.41070038,191.18,191.17,1.596]
[1738970526532,16.41070038,191.19,191.17,1.596]
[1738970527929,16.41070038,191.21,191.17,1.596]
[1738970528829,16.41070038,191.2,191.17,1.596]
[1738970529038,16.41070038,191.19,191.17,1.596]
[1738970529241,16.41070038,191.21,191.17,1.596]
[1738970530254,16.41070038,191.21,191.17,6.8268]
[1738970530634,16.41070038,191.21,191.17,1.596]
[1738970531050,0.12549,191.22,191.17,1.596]
[1738970531051,16.41070038,191.2,191.17,1.596]
[1738970533645,16.41070038,191.19,191.17,1.596]
[1738970534145,16.41070038,191.2,191.17,1.596]
[1738970535268,16.41070038,191.19,191.17,1.596]
[1738970535650,16.41070038,191.2,191.17,1.596]
[1738970540060,0.12549,191.22,191.17,6.8268]
[1738970540243,16.41070038,191.24,191.18,16.41070038]